bitfinex/quotes_BTCUSD_20241123
["timestamp","ask_amount","ask_price","bid_price","bid_amount"]
[1732340877942,0.0017206,98247.0,98241.0,0.05008057]
[1732340878190,0.0017206,98247.0,98241.0,0.20008057]
[1732340878423,0.0017206,98247.0,98241.0,0.05008057]
[1732340878656,0.0017206,98247.0,98241.0,0.20008057]
[1732340879496,0.0017206,98247.0,98241.0,0.05008057]
[1732340879712,0.0017206,98247.0,98241.0,0.20008057]
[1732340881824,0.0017206,98247.0,98241.0,0.05008057]
[1732340882299,0.0017206,98247.0,98241.0,0.20008057]
[1732340882532,0.0017206,98247.0,98237.0,0.05094837]
[1732340884452,0.0017206,98247.0,98241.0,0.088]
[1732340884675,0.0017206,98247.0,98242.0,0.05027317]
[1732340884890,0.0017206,98247.0,98242.0,0.20027317]
[1732340885127,0.0451,98246.0,98242.0,0.20027317]
[1732340885354,0.1205,98246.0,98242.0,0.20027317]
[1732340887839,0.0451,98246.0,98242.0,0.20027317]
[1732340888069,0.0017206,98247.0,98242.0,0.20027317]
[1732340893609,0.0370266,98266.0,98242.0,0.20027317]
[1732340894063,0.04722099,98280.0,98242.0,0.20027317]
[1732340894475,0.04722099,98280.0,98242.0,0.24183612]
[1732340896655,0.0451,98279.0,98242.0,0.24183612]
[1732340897132,0.0451,98277.0,98242.0,0.24183612]
[1732340898779,0.0451,98277.0,98242.0,0.20027317]
[1732340902238,0.0451,98277.0,98243.0,0.0497]
[1732340902454,0.0451,98277.0,98244.0,0.0815]
[1732340903634,0.0451,98277.0,98244.0,0.2315]
[1732340905278,0.03381043,98278.0,98244.0,0.2315]
[1732340905575,0.03381043,98278.0,98247.0,0.0497]
[1732340906863,0.03381043,98278.0,98249.0,0.0497]
[1732340907276,0.03381043,98278.0,98250.0,0.0497]
[1732340907994,0.03381043,98278.0,98252.0,0.0497]
[1732340908218,0.03381043,98278.0,98252.0,0.1997]
[1732340908447,0.08041043,98278.0,98252.0,0.1997]
[1732340909854,0.08041043,98278.0,98253.0,0.0497]
[1732340910525,0.08213063,98278.0,98253.0,0.0497]
[1732340913735,0.08213063,98278.0,98255.0,0.0497]
[1732340914441,0.08213063,98278.0,98255.0,0.1997]
[1732340915150,0.0017202,98278.0,98256.0,0.0497]
[1732340916772,0.0017202,98278.0,98257.0,0.0815]
[1732340917009,0.0017202,98278.0,98259.0,0.0815]
[1732340917248,0.0017202,98278.0,98260.0,0.0497]
[1732340917466,0.0017202,98278.0,98260.0,0.1997]
[1732340917683,0.0017202,98278.0,98261.0,0.0497]
[1732340918652,0.0017202,98278.0,98262.0,0.040505]
[1732340918914,0.0017202,98278.0,98264.0,0.0497]
[1732340919116,0.0017202,98278.0,98265.0,0.0829]
[1732340919335,0.0017202,98278.0,98266.0,0.1964]
[1732340919861,0.0017202,98278.0,98267.0,0.0464]
[1732340922857,0.0017202,98278.0,98262.0,0.040505]
[1732340923086,0.00040998,98278.0,98264.0,0.0464]
[1732340923311,0.00040998,98278.0,98265.0,0.0829]
[1732340923556,0.00040998,98278.0,98266.0,0.0464]
[1732340924008,0.00040998,98278.0,98267.0,0.0829]
[1732340924238,0.00040998,98278.0,98269.0,0.1293]
[1732340924467,0.03402321,98294.0,98273.0,0.0464]
[1732340924716,0.03402321,98298.0,98273.0,0.0464]
[1732340924981,0.0776594,98299.0,98273.0,0.1964]
[1732340925115,0.08052321,98302.0,98274.0,0.1293]
[1732340925345,0.03402321,98305.0,98277.0,0.0829]
[1732340925548,0.03402321,98305.0,98278.0,0.1964]
[1732340925749,0.03402321,98305.0,98279.0,0.0464]
[1732340925968,0.1008603,98303.0,98279.0,0.0464]
[1732340926560,0.1008603,98303.0,98277.0,0.0829]
[1732340928359,0.1008603,98303.0,98277.0,0.12402325]
[1732340928810,0.13893387,98304.0,98277.0,0.12402325]
[1732340929037,0.13450307,98304.0,98277.0,0.12402325]
[1732340929263,0.06524626,98304.0,98278.0,0.1964]
[1732340930223,0.06524626,98304.0,98279.0,0.0464]
[1732340931163,0.17606947,98305.0,98279.0,0.0464]
[1732340933053,0.17606947,98305.0,98277.0,0.02861105]
[1732340933281,0.17606947,98305.0,98263.0,0.05086454]
[1732340935186,0.17606947,98305.0,98263.0,0.20086454]
[1732340935871,0.17606947,98305.0,98277.0,0.0017196]
[1732340936102,0.1233,98293.0,98277.0,0.0017196]
[1732340937257,0.11082321,98298.0,98279.0,0.0829]
[1732340938041,0.10582321,98298.0,98279.0,0.0829]
[1732340939590,0.03402321,98298.0,98279.0,0.0829]
[1732340939803,0.0465,98303.0,98279.0,0.0829]
[1732340940015,0.0465,98303.0,98280.0,0.0481]
[1732340941411,0.03402321,98302.0,98280.0,0.0481]
[1732340942987,0.05642614,98302.0,98280.0,0.0481]
[1732340943618,0.03402321,98302.0,98280.0,0.0481]
[1732340947404,0.03402321,98294.0,98280.0,0.0498196]
[1732340947625,0.1286,98293.0,98280.0,0.0017196]
[1732340947884,0.1222,98293.0,98280.0,0.0017196]
[1732340949695,0.1172,98293.0,98280.0,0.0017196]
[1732340953056,0.0791,98293.0,98280.0,0.0017196]
[1732340953269,0.03402321,98294.0,98280.0,0.0017196]
[1732340955764,0.03402321,98294.0,98280.0,0.04261708]
[1732340955982,0.03402321,98294.0,98280.0,0.0017196]
[1732340962399,0.03402321,98294.0,98282.0,0.0499]
[1732340971486,0.03488311,98294.0,98282.0,0.0499]
[1732340975955,0.0008598,98303.0,98282.0,0.0499]
[1732340976476,0.00138898,98295.0,98243.0,0.05064812]
[1732340976912,0.00138898,98295.0,98244.0,0.02705]
[1732340977136,0.00138898,98295.0,98245.0,0.05076898]
[1732340978248,0.00138898,98295.0,98246.0,0.00101761]
[1732340979134,0.00138898,98295.0,98247.0,0.05033513]
[1732340979548,0.00138898,98295.0,98249.0,0.17383888]
[1732340979765,0.00138898,98295.0,98248.0,0.123]
[1732340979993,0.00138898,98295.0,98250.0,0.0471]
[1732340980202,0.00138898,98295.0,98249.0,0.05083888]
[1732340980420,0.00138898,98295.0,98250.0,0.123]
[1732340980623,0.00138898,98295.0,98252.0,0.0759]
[1732340980835,0.00138898,98295.0,98253.0,0.0471]
[1732340981051,0.00138898,98295.0,98254.0,0.0759]
[1732340981280,0.00138898,98295.0,98255.0,0.0471]
[1732340981492,0.00138898,98295.0,98256.0,0.0759]
[1732340981695,0.00138898,98295.0,98258.0,0.0759]
[1732340981914,0.00138898,98295.0,98259.0,0.0471]
[1732340982140,0.00138898,98295.0,98261.0,0.0471]
[1732340982368,0.08088898,98295.0,98263.0,0.0471]
[1732340982598,0.08088898,98295.0,98265.0,0.0471]
[1732340982809,0.08088898,98295.0,98267.0,0.0471]
[1732340983598,0.08174888,98295.0,98267.0,0.0471]
[1732340983806,0.08174888,98295.0,98267.0,0.09762503]
[1732340984498,0.0456,98294.0,98267.0,0.09762503]
[1732340985158,0.05833489,98294.0,98267.0,0.09762503]
[1732340985584,0.0456,98294.0,98267.0,0.09762503]
[1732340987832,0.0456,98294.0,98267.0,0.13927768]
[1732340990020,0.0456,98294.0,98268.0,0.15]
[1732340990756,0.1251,98293.0,98268.0,0.15]
[1732340992120,0.13783489,98293.0,98268.0,0.15]
[1732340992580,0.1251,98293.0,98268.0,0.15]
[1732340993267,0.0456,98292.0,98268.0,0.15]
[1732340996271,1e-08,98294.0,98268.0,0.15]
[1732340999134,0.1309,98293.0,98268.0,0.15]
[1732341000721,0.00138898,98286.0,98268.0,0.15]
[1732341002619,0.00138898,98283.0,98268.0,0.15]
[1732341002842,0.00138898,98281.0,98267.0,0.09217768]
[1732341005710,0.00138898,98281.0,98268.0,0.1983]
[1732341008654,0.00138898,98281.0,98268.0,0.1991599]
[1732341009129,0.00138898,98281.0,98268.0,0.0491599]
[1732341010536,0.00138898,98281.0,98268.0,0.0008599]
[1732341011638,0.1309,98280.0,98268.0,0.0008599]
[1732341013939,0.0498,98271.0,98268.0,0.0008599]
[1732341014171,0.0811,98272.0,98268.0,0.04095547]
[1732341014398,0.00138898,98273.0,98268.0,0.04095547]
[1732341014399,0.00138898,98273.0,98268.0,0.0008599]
[1732341014857,0.05728898,98279.0,98268.0,0.0008599]
[1732341017896,0.0454,98278.0,98268.0,0.0008599]
[1732341019976,0.09082826,98273.0,98222.0,0.05070506]
[1732341020601,0.09082826,98273.0,98268.0,0.0017198]
[1732341025952,0.09082826,98273.0,98268.0,0.04343041]
[1732341027969,0.09082826,98273.0,98260.0,0.05002582]
[1732341028186,0.09082826,98273.0,98259.0,0.05031228]
[1732341031130,0.09082826,98273.0,98259.0,0.20031228]
[1732341032035,0.09082826,98273.0,98260.0,0.00439701]
[1732341032267,0.09082826,98273.0,98261.0,0.05023269]
[1732341032708,0.08353961,98274.0,98261.0,0.05023269]
[1732341032927,0.08353961,98274.0,98262.0,0.00439685]
[1732341033145,0.0454,98278.0,98262.0,0.00439685]
[1732341033146,0.03814564,98278.0,98262.0,0.00439685]
[1732341033375,0.05900898,98279.0,98262.0,0.00439685]
[1732341034064,0.05900898,98279.0,98261.0,0.05023269]
[1732341034276,0.05900898,98279.0,98260.0,0.05067197]
[1732341034498,0.05900898,98279.0,98261.0,0.05462747]
[1732341037796,0.05900898,98279.0,98262.0,0.1955]
[1732341038432,0.05900898,98279.0,98263.0,0.00439549]
[1732341040462,0.05900898,98279.0,98262.0,0.0455]
[1732341040934,0.1,98276.0,98259.0,0.00086]
[1732341041157,0.1532,98275.0,98259.0,0.00086]
[1732341042039,0.0713,98275.0,98259.0,0.00086]
[1732341042258,0.023,98273.0,98259.0,0.00086]
[1732341043653,0.0819,98274.0,98259.0,0.00086]
[1732341043876,0.0819,98274.0,98259.0,0.04237976]
[1732341044341,0.023192,98273.0,98259.0,0.00086]
[1732341044549,0.0819,98274.0,98259.0,0.00086]
[1732341044985,0.0819,98274.0,98261.0,0.00086]
[1732341048808,0.023,98271.0,98261.0,0.00086]
[1732341049498,0.0819,98272.0,98261.0,0.00086]
[1732341052420,0.1,98265.0,98261.0,0.00086]
[1732341052642,0.0483,98264.0,98261.0,0.00086]
[1732341052860,0.0819,98263.0,98261.0,0.00086]
[1732341054165,0.0819,98263.0,98261.0,0.04272251]
[1732341054350,0.0819,98263.0,98261.0,0.00086]
[1732341064582,0.0819,98263.0,98247.0,0.03816816]
[1732341067053,0.023,98266.0,98247.0,0.03816816]
[1732341067510,0.02246063,98266.0,98247.0,0.03816816]
[1732341067741,0.02246063,98266.0,98185.0,0.102]
[1732341067742,0.02246063,98266.0,98240.0,0.09039058]
[1732341068218,0.0818,98271.0,98240.0,0.09039058]
[1732341068447,0.0818,98271.0,98247.0,0.0008602]
[1732341069146,0.1,98269.0,98247.0,0.0008602]
[1732341069404,0.1,98267.0,98247.0,0.0008602]
[1732341069898,0.023,98266.0,98247.0,0.0008602]
[1732341070138,0.1,98267.0,98247.0,0.0008602]
[1732341070385,0.023,98266.0,98247.0,0.0008602]
[1732341070628,0.1,98267.0,98247.0,0.0008602]
[1732341070878,0.023,98266.0,98248.0,0.0481]
[1732341071354,0.023,98267.0,98248.0,0.0481]
[1732341071592,0.123,98268.0,98248.0,0.0481]
[1732341072317,0.123,98268.0,98248.0,0.04796473]
[1732341072535,0.023,98268.0,98248.0,0.04796473]
[1732341072760,0.123,98268.0,98248.0,0.04796473]
[1732341074086,0.02068,98267.0,98248.0,0.04796473]
[1732341074309,0.023,98266.0,98248.0,0.04796473]
[1732341074813,0.093,98268.0,98248.0,0.04796473]
[1732341076256,0.093,98269.0,98248.0,0.04796473]
[1732341077887,0.11048,98269.0,98248.0,0.04796473]
[1732341078143,0.01748,98269.0,98248.0,0.04796473]
[1732341078410,0.1748,98271.0,98248.0,0.04796473]
[1732341079087,0.1748,98271.0,98248.0,0.08843949]
[1732341079315,0.093,98270.0,98248.0,0.08843949]
[1732341079564,0.02698,98269.0,98248.0,0.08843949]
[1732341080497,0.02698,98269.0,98248.0,0.04047476]
[1732341080748,0.02698,98269.0,98249.0,0.0472]
[1732341081249,0.093,98269.0,98249.0,0.0472]
[1732341081730,0.093,98270.0,98249.0,0.0472]
[1732341083398,0.093,98270.0,98251.0,0.0472]
[1732341083624,0.093,98270.0,98251.0,0.1972]
[1732341086620,0.0818,98271.0,98251.0,0.1972]
[1732341086835,0.093,98270.0,98251.0,0.1972]
[1732341088385,0.11220947,98270.0,98252.0,0.0472]
[1732341089467,0.01920947,98270.0,98252.0,0.0472]
[1732341089694,0.11220947,98270.0,98252.0,0.0472]
[1732341089937,0.093,98270.0,98252.0,0.0472]
[1732341092869,0.0947206,98270.0,98252.0,0.0472]
[1732341093100,0.0017206,98270.0,98252.0,0.0472]
[1732341093331,0.0947206,98270.0,98252.0,0.0472]
[1732341093567,0.0017206,98270.0,98252.0,0.0472]
[1732341093806,0.01785206,98269.0,98252.0,0.0472]
[1732341094673,0.0017206,98270.0,98252.0,0.0472]
[1732341102493,0.0017206,98270.0,98253.0,0.0465]
[1732341105933,0.0017206,98270.0,98253.0,0.08710354]
[1732341106595,0.0017206,98270.0,98253.0,0.04060354]
[1732341106800,0.0017206,98270.0,98254.0,0.0465]
[1732341110818,0.0017206,98270.0,98254.0,0.08729263]
[1732341113606,0.0017206,98270.0,98254.0,0.0465]
[1732341114287,0.0017206,98270.0,98224.0,0.007]
[1732341114288,0.0786,98269.0,98221.0,0.05087479]
[1732341114506,0.09645206,98269.0,98221.0,0.05087479]
[1732341115377,0.0457,98268.0,98221.0,0.05087479]
[1732341115584,0.0786,98267.0,98221.0,0.05087479]
[1732341115786,0.02438727,98266.0,98221.0,0.05087479]
[1732341116055,0.0786,98267.0,98222.0,0.00101799]
[1732341116290,0.0786,98267.0,98223.0,0.0507114]
[1732341117088,0.0786,98267.0,98222.0,0.05006105]
[1732341117282,0.01260206,98266.0,98226.0,0.0465]
[1732341117484,0.01260206,98266.0,98228.0,0.0465]
[1732341117758,0.00929227,98265.0,98229.0,0.0681]
[1732341117981,0.00929227,98265.0,98231.0,0.0681]
[1732341118205,0.00929227,98265.0,98232.0,0.0465]
[1732341118423,0.00929227,98265.0,98232.0,0.15]
[1732341118635,0.01022149,98264.0,98233.0,0.0465]
[1732341118845,0.01260206,98266.0,98233.0,0.0465]
[1732341119063,0.0017206,98270.0,98240.0,0.05055889]
[1732341119271,0.0017206,98270.0,98243.0,0.0486]
[1732341119486,0.0017206,98270.0,98244.0,0.12891776]
[1732341119691,0.0017206,98270.0,98245.0,0.1279]
[1732341120103,0.0017206,98270.0,98246.0,0.15]
[1732341120336,0.0017206,98270.0,98248.0,0.1279]
[1732341120553,0.0017206,98270.0,98247.0,0.0793]
[1732341120769,0.0017206,98270.0,98249.0,0.0793]
[1732341121004,6e-07,98278.0,98251.0,0.0793]
[1732341121219,6e-07,98278.0,98253.0,0.1279]
[1732341121427,6e-07,98278.0,98255.0,0.1279]
[1732341121646,6e-07,98278.0,98257.0,0.0793]
[1732341121881,6e-07,98278.0,98258.0,0.0486]
[1732341122097,6e-07,98278.0,98258.0,0.1986]
[1732341122310,6e-07,98278.0,98260.0,0.1279]
[1732341122743,6e-07,98278.0,98260.0,0.0486]
[1732341122948,6e-07,98278.0,98262.0,0.1279]
[1732341123194,6e-07,98278.0,98263.0,0.0486]
[1732341123406,6e-07,98278.0,98264.0,0.0486]
[1732341123818,6e-07,98278.0,98242.0,0.05072095]
[1732341123819,6e-07,98278.0,98265.0,0.2293]
[1732341124025,6e-07,98278.0,98266.0,0.0486]
[1732341124253,6e-07,98278.0,98267.0,0.0486]
[1732341126887,0.08070001,98294.0,98267.0,0.0486]
[1732341126888,0.05816187,98294.0,98267.0,0.0486]
[1732341127363,0.05816187,98294.0,98270.0,0.0486]
[1732341130099,0.05988287,98294.0,98270.0,0.0486]
[1732341134171,0.05988287,98294.0,98270.0,0.09070822]
[1732341139101,0.05988287,98294.0,98271.0,0.023]
[1732341141428,0.0464,98293.0,98271.0,0.023]
[1732341142057,0.0776,98292.0,98271.0,0.023]
[1732341143755,0.001721,98294.0,98260.0,0.05076108]
[1732341143756,0.001721,98294.0,98273.0,0.1964]
[1732341143988,0.001721,98294.0,98274.0,0.04741738]
[1732341144692,0.07068011,98298.0,98275.0,0.0464]
[1732341144932,0.00101741,98297.0,98277.0,0.0464]
[1732341146345,0.0776,98295.0,98261.0,0.0464]
[1732341146606,0.0464,98296.0,98260.0,0.05068936]
[1732341146607,0.0776,98293.0,98262.0,0.0464]
[1732341146847,0.00101741,98292.0,98262.0,0.0464]
[1732341147763,0.00101741,98292.0,98263.0,0.023]
[1732341147993,0.07068202,98293.0,98265.0,0.023]
[1732341148217,0.07068202,98293.0,98266.0,0.0464]
[1732341152846,0.07068202,98293.0,98266.0,0.0472601]
[1732341153290,0.07068202,98293.0,98266.0,0.0008601]
[1732341153544,0.07068202,98293.0,98267.0,0.0459]
[1732341163040,0.0017202,98294.0,98269.0,0.15]
[1732341163368,0.0017202,98294.0,98271.0,0.1267]
[1732341163564,0.0008598,98303.0,98273.0,0.15]
[1732341163767,0.0455,98315.0,98275.0,0.0802]
[1732341164045,0.0455,98315.0,98276.0,0.0465]
[1732341164886,0.0017202,98294.0,98276.0,0.0465]
[1732341165126,0.0017202,98294.0,98276.0,0.1965]
[1732341165378,0.0455,98315.0,98277.0,0.0465]
[1732341165620,0.0455,98315.0,98278.0,0.0465]
[1732341166064,0.0455,98315.0,98280.0,0.0465]
[1732341166757,0.0813,98313.0,98281.0,0.0465]
[1732341166961,0.0813,98313.0,98281.0,0.1965]
[1732341167177,0.0813,98313.0,98281.0,0.0465]
[1732341167391,0.0813,98311.0,98281.0,0.0465]
[1732341167590,0.0813,98309.0,98281.0,0.0465]
[1732341167804,0.0813,98309.0,98281.0,0.23727106]
[1732341169067,0.0813,98309.0,98281.0,0.0465]
[1732341173241,0.0813,98309.0,98284.0,0.0465]
[1732341176074,0.0830202,98309.0,98284.0,0.0465]
[1732341177168,0.0455,98308.0,98284.0,0.0465]
[1732341182407,0.0455,98308.0,98285.0,0.02206514]
[1732341186877,0.0809,98307.0,98285.0,0.02206514]
[1732341187087,0.0492,98305.0,98281.0,0.04071595]
[1732341187289,0.0492,98303.0,98281.0,0.04071595]
[1732341187519,0.0492,98301.0,98271.0,0.0452]
[1732341187735,0.0492,98299.0,98271.0,0.0452]
[1732341187942,0.0492,98297.0,98271.0,0.0452]
[1732341188163,0.0809,98296.0,98272.0,0.05092862]
[1732341188372,0.0809,98294.0,98272.0,0.20092862]
[1732341188602,0.0809,98294.0,98272.0,0.05092862]
[1732341188846,0.0809,98294.0,98269.0,0.05017407]
[1732341189067,0.0492,98293.0,98269.0,0.05017407]
[1732341189278,0.0492,98291.0,98268.0,0.05065556]
[1732341189549,0.0492,98291.0,98281.0,0.0008601]
[1732341191676,0.0492,98291.0,98282.0,0.00485475]
[1732341195838,0.0809,98290.0,98282.0,0.00485475]
[1732341196083,0.0492,98289.0,98282.0,0.00485475]
[1732341196284,0.0492,98289.0,98281.0,0.0008601]
[1732341199435,0.0492,98289.0,98281.0,0.04186343]
[1732341199927,0.0492,98289.0,98282.0,0.00487658]
[1732341200372,0.0492,98289.0,98281.0,0.0008601]
[1732341202702,0.0509206,98289.0,98281.0,0.0008601]
[1732341203165,0.0509206,98289.0,98281.0,0.04110909]
[1732341203635,0.0509206,98289.0,98282.0,0.00488732]
[1732341204332,0.0017206,98289.0,98282.0,0.00488732]
[1732341204995,0.0017206,98289.0,98282.0,0.05378732]
[1732341208260,0.0017206,98289.0,98282.0,0.00488732]
[1732341209733,0.1252,98288.0,98282.0,0.00488732]
[1732341210213,0.1252,98288.0,98281.0,0.0008601]
[1732341210686,0.077,98288.0,98281.0,0.0008601]
[1732341214759,0.077,98288.0,98281.0,0.04122343]
[1732341214995,0.077,98288.0,98281.0,0.0008601]
[1732341219660,0.077,98288.0,98282.0,0.0213416]
[1732341219878,0.0017206,98289.0,98282.0,0.0213416]
[1732341220130,0.0017206,98289.0,98245.0,0.11196418]
[1732341220341,0.0017206,98289.0,98283.0,0.00488251]
[1732341220546,0.0017206,98289.0,98246.0,0.15101743]
[1732341220953,0.0017206,98289.0,98284.0,0.00488242]
[1732341221177,0.0017206,98289.0,98246.0,0.15101743]
[1732341221389,0.0017206,98289.0,98285.0,0.00488205]
[1732341221825,0.0017206,98289.0,98246.0,0.15101743]
[1732341222077,0.0017206,98289.0,98286.0,0.00488197]
[1732341222293,0.0017206,98289.0,98274.0,0.00101743]
[1732341222758,0.0017206,98289.0,98275.0,0.00488433]
[1732341222987,0.0017206,98289.0,98276.0,0.00101743]
[1732341223203,0.0017206,98289.0,98276.0,0.00590168]
[1732341223430,0.077,98288.0,98276.0,0.00590168]
[1732341225308,0.0472,98287.0,98276.0,0.00590168]
[1732341226067,0.0472,98287.0,98276.0,0.04754677]
[1732341226529,0.077,98286.0,98276.0,0.04840707]
[1732341227402,0.071386,98286.0,98277.0,0.05187734]
[1732341227618,0.071386,98286.0,98277.0,0.05676372]
[1732341227876,0.071386,98286.0,98278.0,0.00101743]
[1732341228361,0.071386,98286.0,98279.0,0.00488592]
[1732341228575,0.071386,98286.0,98280.0,0.00101737]
[1732341228785,0.071386,98286.0,98281.0,0.00101738]
[1732341229012,0.071386,98286.0,98281.0,0.00590284]
[1732341229219,0.0017206,98289.0,98281.0,0.00590284]
[1732341229427,0.002,98324.0,98281.0,0.00101738]
[1732341229428,2.04751798,98309.0,98281.0,0.00101738]
[1732341229651,2.04751798,98309.0,98278.0,0.0494]
[1732341229877,2.04751798,98309.0,98279.0,0.00101732]
[1732341230942,2.04751798,98309.0,98279.0,0.22641732]
[1732341231287,2.04751798,98309.0,98280.0,0.00488226]
[1732341231418,2.04751798,98309.0,98281.0,0.00101732]
[1732341231842,2.04751798,98309.0,98280.0,0.00101732]
[1732341232229,0.077,98308.0,98280.0,0.00101732]
[1732341232445,0.077,98308.0,98281.0,0.02360477]
[1732341232652,0.0472,98307.0,98283.0,0.0494]
[1732341232872,0.0472,98307.0,98284.0,0.00101732]
[1732341236797,0.0472,98307.0,98285.0,0.05022575]
[1732341237004,0.0472,98307.0,98286.0,0.00101727]
[1732341237239,0.0472,98307.0,98287.0,0.00101727]
[1732341237474,0.0472,98307.0,98286.0,0.00101727]
[1732341238574,0.0489206,98307.0,98286.0,0.00101727]
[1732341238797,0.0489206,98307.0,98286.0,0.04172969]
[1732341242170,0.0489206,98307.0,98281.0,0.0008603]
[1732341242171,0.00101727,98306.0,98280.0,0.0508883]
[1732341242401,0.00101727,98306.0,98281.0,0.02462204]
[1732341243555,0.00101727,98306.0,98282.0,0.05061125]
[1732341243721,0.00101727,98306.0,98283.0,0.00101727]
[1732341244556,0.079,98305.0,98283.0,0.00101727]
[1732341244964,0.079,98305.0,98284.0,0.05022387]
[1732341245165,0.079,98305.0,98285.0,0.00101727]
[1732341245398,0.079,98305.0,98285.0,0.05165484]
[1732341246156,0.079,98305.0,98286.0,0.00487314]
[1732341246354,0.079,98305.0,98287.0,0.00101727]
[1732341246782,0.0458,98302.0,98281.0,0.05054199]
[1732341247010,0.1248,98298.0,98281.0,0.05054199]
[1732341247227,0.1248,98296.0,98283.0,0.05070374]
[1732341247429,0.079,98294.0,98284.0,0.00487179]
[1732341247630,0.079,98292.0,98284.0,0.00487179]
[1732341248265,0.079,98292.0,98285.0,0.05063757]
[1732341248664,0.02983943,98295.0,98286.0,0.00485579]
[1732341251869,0.0758,98294.0,98286.0,0.00485579]
[1732341252089,0.0758,98294.0,98285.0,0.05063757]
[1732341252534,0.0758,98294.0,98286.0,0.00488117]
[1732341253082,0.0758,98294.0,98285.0,0.05063757]
[1732341253544,0.0758,98294.0,98286.0,0.00488095]
[1732341254032,0.0758,98294.0,98280.0,0.05079975]
[1732341254908,0.0758,98294.0,98281.0,0.00488209]
[1732341256378,0.01228428,98294.0,98282.0,0.05061125]
[1732341256713,0.004365,98314.0,98283.0,0.00488186]
[1732341256916,0.004365,98314.0,98284.0,0.05022387]
[1732341257116,0.006365,98314.0,98284.0,0.05022387]
[1732341257355,0.004365,98314.0,98281.0,0.05054199]
[1732341257869,0.006365,98314.0,98281.0,0.05054199]
[1732341258101,0.006365,98314.0,98280.0,0.05079975]
[1732341259689,0.128,98306.0,98280.0,0.05079975]
[1732341259917,0.0499,98305.0,98280.0,0.05079975]
[1732341260985,0.0499,98305.0,98280.0,0.20079975]
[1732341273771,0.0499,98305.0,98280.0,0.05079975]
[1732341275579,0.0499,98305.0,98280.0,0.05166005]
[1732341275781,0.0516206,98305.0,98280.0,0.05166005]
[1732341277762,0.0516206,98305.0,98281.0,0.1233]
[1732341277975,0.0516206,98305.0,98282.0,0.0457]
[1732341278183,0.0516206,98305.0,98283.0,0.05070374]
[1732341278391,0.0516206,98305.0,98284.0,0.00487942]
[1732341278604,0.0516206,98305.0,98283.0,0.20070374]
[1732341279493,0.0516206,98305.0,98284.0,0.0469174]
[1732341279494,0.02555774,98305.0,98284.0,0.0469174]
[1732341279718,2.00819319,98309.0,98286.0,0.0459]
[1732341279946,1.97018605,98309.0,98287.0,0.07811732]
[1732341280209,1.97018605,98309.0,98288.0,0.1959]
[1732341280355,1.97018605,98309.0,98290.0,0.15]
[1732341280569,1.97018605,98309.0,98291.0,0.0459]
[1732341280770,1.97018605,98309.0,98292.0,0.0459]
[1732341281196,1.96714041,98309.0,98292.0,0.0459]
[1732341281400,1.95915245,98309.0,98294.0,0.0469]
[1732341281993,1.8997803,98309.0,98295.0,0.0469]
[1732341282202,1.8947803,98309.0,98295.0,0.0469]
[1732341282630,1.88886666,98309.0,98295.0,0.0469]
[1732341287811,1.89058726,98309.0,98295.0,0.0469]
[1732341292849,1.89058726,98309.0,98293.0,0.02279596]
[1732341293449,0.08,98308.0,98281.0,0.05054199]
[1732341293670,0.1281,98308.0,98293.0,0.04146603]
[1732341293897,0.1281,98308.0,98281.0,0.05054199]
[1732341295652,0.1281,98308.0,98282.0,0.0469]
[1732341295858,0.1281,98308.0,98283.0,0.05070374]
[1732341302974,0.045,98307.0,98283.0,0.05070374]
[1732341306344,0.045,98307.0,98283.0,0.05172111]
[1732341306572,0.06923961,98308.0,98284.0,0.04871736]
[1732341306820,1.89058726,98309.0,98284.0,0.04871736]
[1732341306821,1.89058726,98309.0,98286.0,0.0477]
[1732341307056,1.88542706,98309.0,98287.0,0.00101723]
[1732341307295,1.88542706,98309.0,98288.0,0.00101723]
[1732341307525,1.88542706,98309.0,98288.0,0.02617038]
[1732341307747,1.88542706,98309.0,98289.0,0.00101723]
[1732341308180,1.88542706,98309.0,98286.0,0.1977]
[1732341309755,0.0796,98308.0,98286.0,0.1977]
[1732341311122,0.0796,98308.0,98287.0,0.0008601]
[1732341311346,0.045,98307.0,98285.0,0.00023078]
[1732341312466,0.045,98307.0,98286.0,0.02094582]
[1732341312682,0.1246,98306.0,98286.0,0.02094582]
[1732341312900,0.1246,98306.0,98287.0,0.00101731]
[1732341313353,0.1246,98306.0,98284.0,0.00101731]
[1732341313587,0.07068652,98306.0,98284.0,0.00101731]
[1732341313808,1.88542706,98309.0,98284.0,0.00101731]
[1732341313955,1.88542706,98309.0,98284.0,0.04154022]
[1732341314193,1.88542706,98309.0,98284.0,0.00101731]
[1732341314397,1.60844229,98309.0,98284.0,0.00101731]
[1732341315192,1.53540626,98309.0,98284.0,0.00101731]
[1732341315407,1.49264226,98309.0,98284.0,0.00101731]
[1732341315622,1.49264226,98309.0,98285.0,0.0477]
[1732341316923,0.1246,98308.0,98285.0,0.0477]
[1732341318020,0.1246,98308.0,98283.0,0.0917032]
[1732341318021,0.045,98307.0,98283.0,0.05070374]
[1732341320283,0.045,98307.0,98282.0,0.05061125]
[1732341320489,0.045,98307.0,98284.0,0.00540293]
[1732341320699,0.045,98307.0,98283.0,0.05070374]
[1732341321102,0.0779,98306.0,98283.0,0.05070374]
[1732341321320,0.0495,98303.0,98283.0,0.05070374]
[1732341321526,0.0495,98301.0,98283.0,0.05070374]
[1732341321737,0.0495,98301.0,98284.0,0.00540225]
[1732341323280,0.04224377,98301.0,98284.0,0.00540225]
[1732341324785,0.0779,98300.0,98284.0,0.00540225]
[1732341326469,0.0495,98299.0,98284.0,0.00540225]
[1732341326694,0.0779,98298.0,98284.0,0.00540225]
[1732341326922,0.0495,98297.0,98284.0,0.00540225]
[1732341327160,0.0495,98295.0,98251.0,0.023]
[1732341327389,0.0495,98293.0,98285.0,0.0044789]
[1732341327638,0.0495,98291.0,98254.0,0.00101739]
[1732341328100,0.0495,98291.0,98256.0,0.05086158]
[1732341328323,0.0495,98291.0,98257.0,0.00101739]
[1732341328591,0.0495,98291.0,98258.0,0.023]
[1732341328810,0.04170309,98291.0,98259.0,0.00101739]
[1732341329024,0.04170309,98291.0,98261.0,0.05056481]
[1732341329246,0.04170309,98291.0,98262.0,0.00101739]
[1732341329469,0.04170309,98291.0,98263.0,0.05064328]